bitfinex/quotes_ETHUSD_20260113
["timestamp","ask_amount","ask_price","bid_price","bid_amount"]
[1768335028576,3.1176929,3207.5,3206.5,1.00068745]
[1768335028776,0.58126929,3207.4,3206.5,1.00068745]
[1768335028992,0.33626929,3207.4,3206.6,1.00068745]
[1768335029187,0.245,3207.3,3206.4,3.11872471]
[1768335029387,0.245,3207.2,3207.1,0.001]
[1768335029767,0.245,3207.2,3206.5,1.00068745]
[1768335030166,0.245,3207.2,3206.5,4.11935253]
[1768335030372,0.245,3207.2,3206.5,1.00068745]
[1768335030575,0.245,3207.2,3206.1,1.00068745]
[1768335030576,0.58128053,3207.2,3206.1,1.00068745]
[1768335030776,3.36299856,3207.2,3206.2,4.11959098]
[1768335031006,6.48099712,3207.2,3206.2,1.00068745]
[1768335031172,0.03893977,3207.1,3206.2,1.00068745]
[1768335031873,7.39209855,3207.2,3206.2,1.00068745]
[1768335032273,7.39209855,3207.2,3205.9,3.11921961]
[1768335032274,4.02924381,3207.1,3206.0,3.11913819]
[1768335032474,1.65032567,3207.0,3206.0,3.11913819]
[1768335032718,0.91110143,3206.9,3205.6,1.00168745]
[1768335033073,0.91110143,3206.9,3205.6,4.12120046]
[1768335033481,0.91110143,3206.9,3205.6,1.00168745]
[1768335033806,0.91110143,3206.9,3205.7,3.11940001]
[1768335033988,1.08002797,3206.8,3205.7,3.11940001]
[1768335034194,0.245,3206.7,3205.6,1.00168745]
[1768335034507,3.36349737,3206.7,3205.7,3.11942939]
[1768335034706,0.245,3206.7,3205.7,7.23956033]
[1768335034876,0.245,3206.7,3205.7,4.12011684]
[1768335035077,0.245,3206.7,3205.7,4.84418061]
[1768335035274,3.36349668,3206.7,3205.7,4.84418061]
[1768335035986,0.245,3206.7,3205.7,4.84418061]
[1768335036170,3.3634719,3206.7,3205.7,4.84418061]
[1768335036373,3.40241167,3206.7,3205.7,4.12011684]
[1768335037076,3.40241167,3206.7,3205.7,1.00068745]
[1768335037271,6.52088357,3206.7,3205.7,1.00068745]
[1768335037618,3.36349799,3206.7,3205.7,4.12012331]
[1768335038192,0.99017915,3206.6,3205.6,0.001]
[1768335038496,0.99017915,3206.3,3205.6,0.001]
[1768335038691,0.245,3206.2,3205.6,0.001]
[1768335040479,3.36399546,3206.2,3205.6,0.001]
[1768335041230,0.245,3206.2,3205.6,0.001]
[1768335041580,0.245,3206.2,3205.6,0.92166961]
[1768335041821,0.58137625,3206.2,3205.6,0.92166961]
[1768335042719,0.58137625,3206.2,3206.0,0.001]
[1768335043018,0.245,3206.3,3206.0,0.92166961]
[1768335043583,0.245,3206.3,3206.0,0.001]
[1768335043788,0.03893977,3206.2,3205.6,0.001]
[1768335044026,6.23678786,3206.8,3205.6,0.92166961]
[1768335044027,0.99017915,3206.5,3205.6,0.92166961]
[1768335044209,0.245,3206.4,3205.6,0.92166961]
[1768335044588,3.36382808,3206.4,3205.6,0.92166961]
[1768335044786,0.33638281,3206.3,3205.6,0.92166961]
[1768335045327,0.99017915,3206.8,3205.7,0.92066961]
[1768335045497,4.1082609,3207.1,3205.7,0.95186404]
[1768335045686,0.99017915,3207.4,3205.7,0.92066961]
[1768335045892,0.99017915,3207.7,3205.7,0.92066961]
[1768335046093,0.245,3207.3,3205.7,0.92066961]
[1768335046430,0.245,3207.3,3205.6,6.2400627]
[1768335046431,0.245,3207.3,3205.9,0.92066961]
[1768335046624,0.99017915,3207.7,3205.8,0.71607323]
[1768335046625,3.11759571,3207.6,3206.1,0.92066961]
[1768335047122,0.245,3207.5,3206.1,0.92066961]
[1768335048200,0.245,3207.4,3206.1,0.92066961]
[1768335048821,0.99017915,3207.2,3206.2,0.92066961]
[1768335049122,0.99017915,3207.0,3205.6,0.92166961]
[1768335049283,0.03893977,3206.9,3205.6,0.92166961]
[1768335049617,0.245,3207.3,3206.2,0.92066961]
[1768335050119,0.99217915,3207.9,3206.4,0.92066961]
[1768335050120,0.002,3207.9,3206.4,0.92066961]
[1768335050349,0.245,3207.8,3206.4,0.92066961]
[1768335050498,0.245,3207.8,3206.1,9.3571629]
[1768335050499,0.245,3207.8,3206.6,0.92066961]
[1768335050826,0.002,3207.9,3206.9,0.92066961]
[1768335051127,0.002,3207.9,3207.1,0.92066961]
[1768335051445,0.002,3208.3,3207.1,0.92066961]
[1768335051446,0.002,3208.3,3207.2,0.92066961]
[1768335051631,1.23517915,3208.8,3207.2,0.92066961]
[1768335051793,0.245,3208.8,3207.2,0.92066961]
[1768335051998,0.29028959,3208.7,3207.2,0.92066961]
[1768335052196,1.23517915,3208.8,3207.2,0.92066961]
[1768335052503,1.2804995,3208.7,3207.3,0.245]
[1768335052737,0.99017915,3208.7,3207.3,1.16566961]
[1768335052938,0.99017915,3208.7,3207.4,6.23558022]
[1768335053246,0.245,3208.8,3207.5,0.74012498]
[1768335054031,0.00080096,3208.9,3207.5,0.74012498]
[1768335054032,0.00080096,3208.9,3207.6,0.92066961]
[1768335054545,0.00080096,3208.9,3207.6,0.92166961]
[1768335054838,0.00080096,3208.9,3207.8,0.92066961]
[1768335055148,0.00080096,3208.9,3207.9,1.16566961]
[1768335055443,0.00080096,3208.9,3208.0,0.92066961]
[1768335056119,0.00080096,3208.9,3207.9,0.245]
[1768335056120,0.247,3209.9,3208.6,0.92066961]
[1768335056649,0.002,3209.9,3208.6,0.92066961]
[1768335056955,0.002,3209.9,3208.7,4.03719655]
[1768335057249,0.002,3209.9,3208.8,0.92066961]
[1768335059031,0.002,3209.9,3209.0,0.92066961]
[1768335059226,0.002,3209.9,3209.1,0.7153335]
[1768335060143,0.002,3209.9,3209.1,1.63600311]
[1768335060349,0.002,3209.9,3209.2,0.92066961]
[1768335061664,0.002,3209.9,3209.2,4.03669767]
[1768335061962,0.002,3209.9,3209.3,0.92066961]
[1768335062174,0.002,3209.9,3209.4,1.32433938]
[1768335062468,3.80080651,3211.2,3209.7,0.92066961]
[1768335062692,0.245,3211.3,3209.7,0.92066961]
[1768335062849,0.68658043,3211.2,3209.7,0.92066961]
[1768335063049,0.68658043,3210.9,3209.6,3.36063156]
[1768335063360,0.38009654,3210.8,3209.8,0.92066961]
[1768335065060,0.03893232,3210.7,3209.5,4.074839]
[1768335065240,0.6862633,3210.6,3209.4,3.76449106]
[1768335065442,0.03893474,3210.5,3209.4,3.76449106]
[1768335065645,0.6862633,3210.6,3209.5,3.11572354]
[1768335065837,1.1082569,3210.6,3209.6,0.37643933]
[1768335066186,0.002,3210.5,3209.6,0.37643933]
[1768335066364,0.68816001,3210.5,3209.4,0.40366977]
[1768335066552,0.002,3210.5,3209.2,0.959104]
[1768335066744,0.002,3210.5,3209.5,3.11574617]
[1768335067145,0.002,3210.5,3209.4,4.07494241]
[1768335067478,0.002,3210.5,3209.1,3.36105132]
[1768335067479,0.6880579,3210.5,3209.2,3.36101745]
[1768335067858,0.6880579,3210.5,3209.3,3.11592697]
[1768335068153,0.44698227,3210.4,3209.3,3.11592697]
[1768335068742,0.44698227,3210.4,3209.4,3.11584588]
[1768335069382,0.44698227,3210.4,3209.3,3.11594428]
[1768335070479,0.002,3210.5,3209.4,0.959104]
[1768335070656,0.002,3210.5,3209.4,0.99026247]
[1768335071374,0.002,3210.5,3209.6,0.959104]
[1768335073564,0.002,3210.5,3209.7,0.959104]
[1768335074248,0.68737526,3210.5,3208.9,0.959104]
[1768335074448,0.64764038,3210.4,3209.2,0.959104]
[1768335074644,0.64764038,3210.4,3209.3,0.959104]
[1768335075384,0.64764038,3210.4,3209.5,0.959104]
[1768335075750,3.36186051,3210.5,3209.7,0.959104]
[1768335076150,6.47672102,3210.5,3209.1,0.959104]
[1768335076349,0.72403514,3210.4,3209.1,4.0752404]
[1768335076588,6.47672102,3210.5,3209.2,0.98680054]
[1768335077259,0.03893595,3210.4,3209.2,0.98680054]
[1768335077460,0.72006662,3210.3,3209.2,0.98680054]
[1768335078178,3.11516775,3210.1,3209.2,0.98680054]
[1768335078572,3.11516775,3210.1,3209.6,0.001]
[1768335078781,6.2303355,3210.1,3209.6,0.001]
[1768335079015,0.03893977,3210.0,3208.9,0.98680054]
[1768335079284,0.87192753,3209.9,3208.9,0.98680054]
[1768335079654,0.87192753,3209.9,3209.0,3.11621526]
[1768335079864,0.002,3210.2,3209.2,0.98680054]
[1768335080051,0.247,3210.2,3209.4,0.98680054]
[1768335080389,0.29006269,3210.1,3209.4,0.98680054]
[1768335080584,0.247,3210.2,3209.4,0.98680054]
[1768335080884,0.29006278,3210.1,3209.4,0.98680054]
[1768335081089,0.247,3210.2,3209.3,1.01795998]
[1768335081250,0.29006213,3210.1,3209.3,1.01795998]
[1768335081450,0.29006213,3210.0,3209.3,1.01795998]
[1768335081674,0.247,3210.2,3209.3,1.01795998]
[1768335081950,0.29028491,3210.1,3209.3,1.01795998]
[1768335082156,0.29028491,3210.0,3209.3,1.01795998]
[1768335082368,0.29047874,3209.9,3209.4,0.98680054]
[1768335082570,0.247,3210.2,3209.4,0.98680054]
[1768335082571,0.002,3210.2,3209.4,0.41339034]
[1768335082795,0.29046041,3210.1,3209.4,0.98680054]
[1768335083092,0.002,3210.2,3209.4,0.98680054]
[1768335083305,0.29046626,3210.1,3209.4,0.98680054]
[1768335083476,0.29046626,3210.0,3209.4,0.98680054]
[1768335083675,0.34075528,3210.0,3209.4,0.98680054]
[1768335084401,0.29086358,3209.9,3209.4,0.98680054]
[1768335084559,0.34075528,3210.0,3209.4,0.98680054]
[1768335084761,0.29088172,3209.9,3209.1,0.98680054]
[1768335084991,0.002,3210.2,3209.5,0.98680054]
[1768335085209,0.002,3210.8,3210.0,0.98680054]
[1768335085503,0.29081699,3210.4,3210.0,0.98680054]
[1768335085666,0.002,3210.8,3210.0,0.98680054]
[1768335085867,0.29098233,3210.4,3210.0,0.98680054]
[1768335086069,0.002,3210.8,3210.0,0.98680054]
[1768335086368,0.29098091,3210.4,3210.0,0.98680054]
[1768335086569,0.002,3210.8,3210.2,0.98680054]
[1768335087082,0.29099225,3210.7,3209.9,0.98680054]
[1768335087279,0.002,3210.8,3210.1,0.98680054]
[1768335087280,0.29099225,3210.6,3210.1,0.98680054]
[1768335087491,0.002,3210.8,3210.1,0.98680054]
[1768335087676,0.29095474,3210.7,3210.2,1.73303355]
[1768335087881,0.002,3210.8,3210.2,1.73303355]
[1768335088603,0.002,3210.8,3210.4,0.98680054]
[1768335090573,0.002,3210.5,3210.4,0.98680054]
[1768335090769,0.002,3210.8,3210.5,0.98680054]
[1768335092913,0.002,3211.8,3210.8,0.98680054]
[1768335093093,3.64827149,3211.7,3210.8,0.98680054]
[1768335093303,0.29058661,3211.6,3210.8,0.98680054]
[1768335093628,0.29058661,3211.5,3210.8,0.98680054]
[1768335093925,0.29058661,3211.4,3210.8,0.98680054]
[1768335094087,0.29058661,3211.3,3210.8,0.98680054]
[1768335094276,0.29058661,3211.2,3210.4,0.98680054]
[1768335094480,0.68362937,3211.5,3210.3,0.98680054]
[1768335094681,0.97407381,3211.4,3210.3,1.23180054]
[1768335094882,3.40444811,3211.3,3210.3,4.34675834]
[1768335095219,0.29044444,3211.2,3210.4,0.96674247]
[1768335095594,3.11385232,3211.5,3210.4,0.96674247]
[1768335095798,0.29038535,3211.4,3210.4,0.96674247]
[1768335096002,0.29038535,3211.3,3210.4,0.96674247]
[1768335096204,0.29038535,3211.2,3210.4,0.96674247]
[1768335096403,3.76106069,3211.6,3210.5,0.96674247]
[1768335096606,0.53432951,3211.5,3210.5,0.96674247]
[1768335096802,0.29032951,3211.4,3210.5,0.96674247]
[1768335097088,0.29032951,3211.3,3210.6,0.96674247]
[1768335097305,3.3578175,3211.5,3210.6,0.96674247]
[1768335097510,0.69079303,3211.4,3210.6,0.96674247]
[1768335097715,0.29027916,3211.3,3210.6,0.96674247]
[1768335099514,0.29027916,3211.3,3210.7,0.96674247]
[1768335099713,0.29027916,3211.3,3210.7,0.99788832]
[1768335100018,0.244,3211.6,3210.7,0.96674247]
[1768335100214,0.2901948,3211.5,3210.7,0.96674247]
[1768335100415,0.2901948,3211.4,3210.9,0.96674247]
[1768335100715,0.244,3211.6,3210.9,0.96674247]
[1768335101020,0.002,3212.2,3210.9,0.96674247]
[1768335101218,0.002,3212.2,3211.0,0.96674247]
[1768335101570,6.22831264,3212.2,3211.1,0.96674247]
[1768335102397,0.002,3211.3,3211.1,0.96674247]
[1768335102718,6.22831264,3212.2,3211.1,1.39934123]
[1768335102894,6.22831264,3212.2,3211.2,0.96674247]
[1768335103922,0.68567182,3212.1,3210.9,0.96674247]
[1768335104126,0.68567182,3212.1,3210.9,1.21174247]
[1768335104598,0.72458717,3212.1,3210.9,0.96674247]
[1768335105194,0.68567182,3212.1,3210.9,0.96674247]
[1768335105405,0.68280622,3211.9,3210.6,0.96674247]
[1768335105738,6.22742558,3211.6,3210.6,0.96674247]
[1768335106031,0.64714256,3211.5,3210.6,0.96674247]
[1768335107706,3.79652436,3211.4,3210.5,7.76621956]
[1768335107907,3.1139067,3211.4,3210.6,0.96674247]
[1768335108609,3.1139067,3211.4,3210.7,4.65149522]
[1768335109337,3.76097922,3211.5,3210.7,4.65149522]
[1768335109642,3.76096147,3211.5,3210.9,4.65149522]
[1768335110641,3.11381891,3211.5,3210.9,4.65149522]
[1768335111444,0.68243551,3211.4,3210.9,4.65149522]
[1768335112210,0.68237619,3211.6,3210.9,4.65149522]
[1768335112517,0.002,3211.8,3211.5,4.65149522]
[1768335113827,0.002,3211.8,3211.2,4.65149522]
[1768335114032,0.002,3211.8,3210.9,4.08109107]
[1768335114033,0.002,3211.8,3211.0,3.11424762]
[1768335114348,0.002,3211.8,3211.2,4.65149522]
[1768335114544,0.002,3211.5,3211.2,4.65149522]
[1768335114738,0.002,3211.8,3211.2,4.65149522]
[1768335115248,0.002,3211.8,3211.1,0.40809901]
[1768335115443,0.002,3211.8,3211.2,4.65149522]
[1768335116723,6.22925748,3212.1,3211.5,5.61823769]
[1768335116724,0.00280128,3212.1,3211.5,5.61823769]
[1768335117045,0.00280128,3212.1,3211.0,0.244]
[1768335117046,0.00280128,3212.1,3211.2,5.61823769]
[1768335117263,0.00280128,3212.1,3211.5,4.65149522]
[1768335118671,3.79722546,3212.2,3211.5,4.65149522]
[1768335118672,0.002,3212.2,3211.8,4.65149522]
[1768335118965,3.11489097,3212.5,3211.8,4.65149522]
[1768335120326,0.002,3212.5,3212.1,4.65149522]
[1768335120521,0.002,3212.5,3212.0,4.65149522]
[1768335121040,6.2247121,3213.0,3212.1,0.96674247]
[1768335121358,0.00282798,3213.1,3212.2,0.244]
[1768335121531,0.04173121,3213.1,3212.3,0.96674247]
[1768335121720,6.2273671,3213.1,3212.0,0.56182377]
[1768335121918,3.11509754,3213.1,3212.1,4.89549522]
[1768335122265,0.00282798,3213.1,3212.5,0.96674247]
[1768335122419,0.00282798,3213.1,3212.2,0.5457319]
[1768335122762,0.002,3213.3,3212.8,4.65149522]
[1768335122922,0.002,3213.3,3212.8,5.61823769]
[1768335123327,0.002,3213.3,3212.5,0.96674247]
[1768335123557,0.002,3213.3,3212.5,1.52856624]
[1768335123862,0.002,3213.3,3212.6,0.96674247]
[1768335124350,0.002,3213.3,3212.5,0.56182377]
[1768335124351,0.04090081,3213.3,3212.5,0.56182377]
[1768335124652,6.22432466,3213.2,3212.3,4.89549522]
[1768335125050,3.11216233,3213.2,3212.3,4.89549522]
[1768335125367,6.22432466,3213.2,3212.3,4.89549522]
[1768335125549,6.22432466,3213.2,3212.3,5.81427713]
[1768335125743,6.22432466,3213.2,3212.5,0.91878191]
[1768335126449,0.002,3213.0,3212.5,0.91878191]
[1768335130268,0.002,3213.3,3212.9,5.57027713]
[1768335130448,0.002,3213.3,3213.0,0.91878191]
[1768335131335,3.11406579,3213.3,3213.0,0.91878191]
[1768335131531,0.002,3213.3,3213.0,0.91878191]
[1768335141947,0.002,3213.5,3213.3,0.93876773]
[1768335142134,3.11169992,3213.7,3213.3,0.93876773]
[1768335142339,3.11169992,3213.7,3212.9,0.93876773]
[1768335142540,6.22339984,3213.7,3212.9,0.93876773]
[1768335142762,0.002,3213.8,3212.9,0.93876773]
[1768335143542,0.62467753,3213.8,3212.9,0.93876773]
[1768335144479,1.30539527,3213.8,3212.9,0.93876773]
[1768335144841,7.23295007,3213.7,3212.8,0.001]
[1768335145177,0.53401972,3213.6,3212.8,0.93976773]
[1768335145344,0.29016767,3213.5,3212.8,0.93976773]
[1768335145544,0.244,3213.6,3212.8,0.93976773]
[1768335145959,0.32906617,3213.5,3212.8,0.93976773]
[1768335146178,0.244,3213.6,3212.8,0.93976773]
[1768335146380,0.93693,3213.5,3212.8,0.93976773]
[1768335146674,0.244,3213.6,3213.0,0.93876773]
[1768335146877,3.11361096,3213.8,3213.2,0.93876773]
[1768335147077,3.11348691,3213.9,3213.5,0.93876773]
[1768335148485,0.2905846,3213.8,3213.5,0.93876773]
[1768335148788,0.002,3213.9,3213.5,0.93876773]
[1768335150389,0.002,3213.8,3213.2,0.93876773]
[1768335152404,0.04089476,3213.8,3213.2,0.93876773]
[1768335152974,0.002,3213.8,3213.2,0.93876773]
[1768335153305,0.002,3213.8,3213.2,5.58346503]
[1768335153906,0.002,3213.8,3213.3,0.93876773]
[1768335154706,0.002,3213.8,3213.6,0.93876773]
[1768335155093,0.002,3213.8,3213.5,4.6446973]
[1768335156009,0.002,3213.8,3213.4,0.99737567]
[1768335158912,0.002,3213.8,3213.2,5.64207297]
[1768335159417,0.002,3213.8,3213.2,0.99737567]
[1768335160377,0.002,3213.8,3213.3,0.99737567]
[1768335161329,0.002,3213.8,3213.1,0.99837567]
[1768335161485,0.29087119,3213.7,3213.1,0.99837567]
[1768335161798,0.32976837,3213.6,3213.1,0.99837567]
[1768335162004,3.15071074,3213.6,3213.1,0.99837567]
[1768335162920,0.2909029,3213.5,3213.1,0.001]
[1768335163111,0.2909029,3213.4,3213.1,0.001]
[1768335163313,0.2909029,3213.3,3212.8,0.001]
[1768335163491,7.53006498,3213.6,3212.8,0.001]
[1768335163492,0.53492166,3213.2,3212.8,0.001]
[1768335163692,3.35621249,3213.2,3212.8,0.001]
[1768335164145,4.00303589,3213.2,3212.8,0.001]
[1768335164325,0.29091634,3213.1,3212.8,0.001]
[1768335164525,0.8908234,3213.2,3212.8,0.001]
[1768335164834,0.29091616,3213.1,3212.8,0.001]
[1768335165036,4.00301501,3213.2,3212.8,0.001]
[1768335165195,0.29091613,3213.1,3212.8,0.001]
[1768335165525,4.00301501,3213.2,3212.8,0.001]
[1768335165726,0.29088463,3213.1,3212.8,0.001]
[1768335165925,4.00301501,3213.2,3212.8,0.001]
[1768335166221,1.00239288,3213.1,3212.8,0.001]
[1768335166429,0.71150832,3213.1,3212.8,0.001]
[1768335166626,0.244,3213.2,3212.8,0.001]
[1768335167020,0.62643128,3213.6,3213.0,0.99737567]
[1768335167219,0.2908322,3213.5,3213.0,0.99737567]
[1768335167432,0.002,3213.8,3213.2,0.99737567]
[1768335171032,0.002,3213.8,3212.9,0.99737567]
[1768335171219,0.04089476,3213.8,3212.9,0.99737567]
[1768335171948,3.11167812,3213.7,3212.9,0.99737567]
[1768335172255,0.03889718,3213.6,3212.9,0.99737567]
[1768335172850,3.11167812,3213.7,3212.9,0.99737567]
[1768335173516,3.11167812,3213.7,3212.9,1.40847789]
[1768335173852,3.11167812,3213.7,3213.0,0.99737567]
[1768335174053,3.1135813,3213.8,3213.2,0.001]
[1768335174553,6.2251626,3213.8,3213.2,0.001]
[1768335174749,0.002,3213.8,3213.2,0.99837567]
[1768335174933,0.246,3213.8,3213.2,0.99837567]
[1768335176138,3.35761344,3213.8,3213.2,0.99837567]
[1768335176632,4.00472492,3213.8,3213.2,0.99837567]
[1768335177356,4.68432291,3213.8,3213.2,0.001]
[1768335178448,7.79593635,3213.8,3213.2,0.001]
[1768335178654,7.11633836,3213.8,3213.2,0.001]
[1768335178960,4.00472492,3213.8,3213.2,0.001]
[1768335180056,0.89311148,3213.8,3213.2,0.99837567]
[1768335180256,0.246,3213.8,3213.2,0.99837567]
[1768335180940,0.002,3213.9,3213.6,0.99737567]
[1768335181147,0.002,3214.1,3213.6,0.99737567]
[1768335181347,3.11330577,3214.1,3213.6,0.99737567]
[1768335181761,6.22461154,3214.1,3213.3,0.99737567]
[1768335181975,7.55094005,3214.1,3213.2,0.001]
[1768335183353,7.55094005,3214.1,3213.2,0.99837567]
[1768335183692,0.67944213,3214.0,3213.2,0.001]
[1768335184484,3.11148448,3213.9,3213.2,0.001]
[1768335184793,3.11148448,3213.9,3213.2,0.99837567]
[1768335185482,0.002,3213.7,3213.2,0.99837567]
[1768335186076,0.002,3213.7,3212.8,0.001]
[1768335186077,0.90739287,3213.7,3212.8,0.001]
[1768335186323,1.58673693,3213.7,3212.8,0.001]
[1768335186622,6.2235499,3213.6,3212.8,0.001]
[1768335186925,0.03889839,3213.5,3212.8,0.001]
[1768335187287,0.03889839,3213.5,3212.6,0.96277435]
[1768335187288,0.71821864,3213.5,3212.4,0.96277435]
[1768335187481,0.67932025,3213.3,3211.4,0.0008284]
[1768335187683,0.67932025,3213.1,3211.7,0.96357571]
[1768335187915,0.6792967,3213.0,3211.7,0.96357571]
[1768335188697,0.6792967,3212.8,3211.7,0.96357571]
[1768335188891,0.244,3212.7,3211.7,0.96357571]
[1768335189215,0.92327343,3212.7,3211.7,0.96357571]
[1768335189598,0.67927343,3212.6,3211.7,0.00080136]
[1768335189983,0.244,3212.7,3211.7,0.96357571]
[1768335190183,1.27006092,3212.7,3211.7,0.96357571]
[1768335190721,6.22548714,3212.6,3211.7,0.96357571]
[1768335191684,9.33823071,3212.6,3211.7,0.96357571]
[1768335191905,0.6792052,3212.5,3211.7,0.00080136]
[1768335192943,6.22587472,3212.4,3211.7,0.00080136]
[1768335193099,0.69050799,3212.3,3211.7,0.00080136]
[1768335193301,0.69050799,3212.3,3210.9,3.11434975]
[1768335193302,0.95320767,3212.0,3210.9,0.96277435]
[1768335193597,0.95320767,3212.0,3211.0,0.96277435]
[1768335193805,0.00080136,3212.1,3211.2,0.96277435]
[1768335195011,6.22725756,3212.1,3211.2,0.96277435]
[1768335195247,0.64712576,3212.0,3211.2,0.96277435]
[1768335196175,0.95320767,3211.9,3210.8,0.96277435]
[1768335196769,0.64712576,3212.0,3210.9,0.98995509]
[1768335197161,3.11342196,3211.9,3211.5,0.001]
[1768335197460,0.37605477,3211.8,3211.5,0.001]
[1768335197872,0.37605477,3211.8,3210.9,0.98995509]
[1768335198157,1.35894197,3211.8,3210.7,0.98995509]
[1768335198726,0.37605477,3211.8,3210.7,0.98995509]
[1768335199326,3.11361584,3211.7,3210.8,0.98995509]
[1768335200049,6.22723168,3211.7,3210.8,0.98995509]
[1768335200256,0.66032865,3211.6,3210.8,0.98995509]
[1768335200632,0.9828872,3211.5,3210.6,0.244]
[1768335200924,0.66032865,3211.6,3210.6,1.23395509]
[1768335201463,6.22761948,3211.5,3210.6,0.98995509]
[1768335201625,6.22761948,3211.5,3210.6,1.23395509]
[1768335201831,6.91641429,3211.5,3210.6,1.23395509]
[1768335202751,6.91641429,3211.5,3210.1,0.98995509]
[1768335202752,0.9828872,3211.4,3210.1,0.98995509]
[1768335202953,0.9828872,3211.4,3210.2,0.98995509]
[1768335203166,0.9828872,3211.4,3210.3,1.23395509]
[1768335203568,6.91641429,3211.5,3210.3,1.23395509]
[1768335203860,1.16733667,3211.4,3210.3,1.23395509]
[1768335205244,2.1891477,3211.4,3210.4,0.98995509]
[1768335205762,6.22800734,3211.3,3210.4,0.98995509]
[1768335205942,7.21089454,3211.3,3210.4,0.98995509]
[1768335206137,3.11400367,3211.3,3210.4,0.98995509]
[1768335207374,0.69167095,3211.3,3210.4,4.10478413]
[1768335207577,3.11394601,3211.4,3210.5,0.98995509]
[1768335207747,7.21044457,3211.6,3210.5,4.10472778]
[1768335207942,7.21044457,3211.6,3210.6,0.98995509]
[1768335208167,3.11377838,3211.6,3210.7,0.98995509]
[1768335208879,6.22755737,3211.6,3210.7,0.99095509]
[1768335209393,6.22755737,3211.6,3210.7,1.55450394]
[1768335209886,7.21044457,3211.6,3210.7,1.55450394]
[1768335210184,0.9828872,3211.5,3210.7,0.001]
[1768335211948,0.9828872,3211.3,3210.7,0.001]
[1768335212544,0.03892625,3211.2,3210.7,0.001]
[1768335212960,0.9828872,3211.3,3210.7,0.001]
[1768335213591,4.09696529,3211.3,3210.7,0.001]
[1768335214450,3.11361584,3211.7,3210.8,0.98995509]
[1768335214646,3.11333914,3212.0,3211.0,0.98995509]
[1768335214647,3.11342196,3211.9,3211.0,0.98995509]
[1768335214845,3.11342196,3211.9,3211.2,0.98995509]
[1768335214846,3.35742196,3211.9,3211.2,0.98995509]
[1768335215681,6.47084392,3211.9,3211.2,0.98995509]
[1768335217152,10.87857394,3212.7,3211.8,0.92650783]
[1768335217459,3.35674357,3212.6,3211.8,0.9109569]
[1768335217662,0.244,3212.6,3211.9,0.92650783]
[1768335219290,3.11284046,3212.5,3211.9,0.92650783]
[1768335219970,0.244,3212.6,3211.9,0.92650783]
[1768335220377,0.002,3212.3,3211.9,0.92650783]
[1768335221391,0.002,3212.6,3212.3,0.92650783]
[1768335221694,0.244,3212.8,3212.3,0.55750856]
[1768335221869,0.244,3212.8,3212.2,0.92650783]
[1768335223257,0.244,3212.8,3212.0,4.64857776]
[1768335223258,0.0008284,3213.1,3212.7,0.92650783]
[1768335223597,0.244,3213.0,3212.7,0.92650783]
[1768335223809,0.244,3213.0,3212.7,5.57508559]
[1768335223810,0.13593682,3213.0,3212.7,5.57508559]
[1768335224099,0.0008284,3213.1,3212.3,0.92650783]
[1768335224298,0.0008284,3213.1,3212.4,0.92650783]
[1768335225288,0.244,3213.0,3212.4,0.92650783]
[1768335225792,3.35635834,3213.0,3212.4,0.92650783]
[1768335226384,0.03890566,3212.9,3212.1,0.92650783]
[1768335226771,0.03890566,3212.9,3211.9,0.92650783]
[1768335226974,1.63596842,3212.8,3211.7,0.92730927]
[1768335227571,3.11264668,3212.7,3211.7,0.92730927]
[1768335227872,0.244,3212.6,3211.7,0.92730927]
[1768335228297,0.244,3212.6,3211.7,0.95844542]
[1768335228792,0.244,3212.6,3211.7,0.92730927]
[1768335228990,0.244,3212.5,3211.7,0.92730927]
[1768335230095,3.35684283,3212.5,3211.7,0.92730927]
[1768335230296,0.244,3212.5,3211.7,0.92730927]
[1768335232501,0.002,3212.2,3211.7,0.92730927]
[1768335238929,0.00080144,3212.1,3211.1,0.92650783]
[1768335239134,0.244,3212.0,3211.1,0.92650783]
[1768335239820,0.244,3212.0,3211.3,0.92650783]
[1768335240226,0.244,3212.0,3211.0,0.92750783]
[1768335240227,4.64857776,3211.4,3211.0,0.92750783]
[1768335240399,0.244,3211.3,3211.0,0.92750783]
[1768335240922,3.35802627,3211.3,3211.0,0.92750783]
[1768335241125,0.244,3211.3,3211.0,0.92750783]
[1768335241799,0.244,3211.3,3211.0,0.001]
[1768335243325,0.57979095,3211.3,3211.0,0.001]
[1768335244194,0.244,3211.3,3211.0,0.001]
[1768335245033,0.244,3211.3,3211.0,0.98931693]
[1768335245553,0.244,3211.2,3211.0,0.98931693]
[1768335245755,0.244,3211.2,3211.0,0.001]
[1768335247218,3.3581244,3211.2,3211.0,0.001]
[1768335247423,3.3581244,3211.2,3210.7,0.001]
[1768335247424,0.6472224,3211.1,3210.7,0.001]
[1768335248136,1.49570907,3211.1,3210.0,0.98831693]
[1768335248321,0.6472224,3211.1,3210.0,0.98831693]
[1768335248756,0.6472224,3211.1,3210.1,0.98831693]
[1768335248927,3.76150156,3211.1,3210.3,0.98831693]
[1768335249127,0.7119626,3211.0,3210.3,0.98831693]
[1768335249523,3.11427916,3211.1,3210.3,0.98831693]
[1768335250647,6.22855832,3211.1,3210.3,0.98831693]
[1768335251162,3.11427916,3211.1,3210.3,0.98831693]
[1768335251725,7.0770008,3211.1,3210.1,0.98831693]
[1768335251937,0.84844248,3211.0,3210.1,0.98831693]
[1768335252144,2.02100034,3210.9,3209.9,0.98831693]
[1768335252753,2.02100034,3210.9,3210.0,0.98831693]
[1768335253064,2.02100034,3210.9,3210.0,4.10355397]
[1768335253267,0.84843175,3211.3,3210.4,0.98831693]
[1768335253465,0.244,3211.2,3210.4,0.98831693]
[1768335253667,0.244,3211.1,3210.4,0.98831693]
[1768335255345,3.35823729,3211.1,3210.4,0.98831693]
[1768335255557,4.00546153,3211.1,3210.4,0.98831693]
[1768335255931,0.89122424,3211.1,3210.4,0.98831693]
[1768335256335,3.35820124,3211.1,3210.4,0.98831693]
[1768335256736,3.35820124,3211.1,3210.4,0.98931693]
[1768335256947,0.002,3211.0,3210.4,0.98931693]
[1768335258534,0.002,3211.0,3210.4,0.001]
[1768335258936,0.002,3211.0,3210.4,0.98023104]
[1768335261339,0.002,3211.0,3210.5,0.97923104]
[1768335261554,0.244,3210.9,3210.5,0.97923104]
[1768335261974,0.002,3211.0,3210.5,0.97923104]